Cogmind - Beta 16 @@@ ROGUE MODE // 2025.10.25 @ 00:14:04 Player: lepire Result: Destroyed by G-50 Soldier with Heavy Laser Performance ------------- Evolutions (1) 500 Regions Visited (5) 1000 Robots Destroyed (55) 275 Value Destroyed (1036) 1036 Prototype IDs (2) 40 Alien Tech Used (0) 0 Bonus (300) 300 TOTAL SCORE: 3151 Bonus ------- Met Imprinter 300 Cogmind --------- Core Integrity 0/400 Matter 278/300 Energy 280/280 System Corruption 0% Temperature Cool (9) Movement Treading (240) Ox1 Location -6/Proximity Caves Parts ------- > --- POWER (1) -------- Cooled Ion Engine > --- PROPULSION (2) --- Improved Treads > --- UTILITY (4) ------ Large Storage Unit Improved Targeting Computer > --- WEAPON (2) ------- Advanced Beam Cannon > --- INVENTORY (15) --- Light Ion Engine Heat Sink Medium Matter Pod (100) Compact Matter Pod (150) Structural Scanner Improved Terrain Scanner Seismic Detector Weapon Cycler Improved Light Armor Plating Improved Light Armor Plating Thermal Shield Beamcaster Advanced Beam Cannon Plasma Cutter Peak State ------------ > --- POWER ------------ Light Nuclear Core > --- PROPULSION ------- Improved Treads Wheel > --- UTILITY ---------- Large Storage Unit Particle Charger Improved Light Armor Plating Improved Light Armor Plating > --- WEAPON ----------- Advanced Beam Cannon Advanced Beam Cannon > --- INVENTORY -------- Light Ion Engine Medium Matter Pod Structural Scanner Improved Terrain Scanner Seismic Detector Improved Targeting Computer Light Armor Plating Improved Light Armor Plating Small Laser Advanced Beam Cannon Advanced Beam Cannon Mini Grenade Launcher [Rating: 24] Favorites ----------- Power Cooled Ion Engine Engine Cooled Ion Engine Power Core Light Nuclear Core Propulsion Wheel Treads Improved Treads Leg Aluminum Leg Wheel Wheel Utility Seismic Detector Device Seismic Detector Storage Large Storage Unit Processor Improved Targeting Computer Protection Improved Light Armor Plating Weapon Advanced Beam Cannon Energy Gun Medium Laser Energy Cannon Advanced Beam Cannon Ballistic Gun Assault Rifle Ballistic Cannon Light Cannon Launcher Grenade Launcher Build | -11 -10 -9 -9 -7 -6 ------- Run | Yrd Mat Mat Min Zio Pro Slots Evolved 2 | . . 2 . . . Power . | . . . . . . Propulsion . | . . . . . . Utility 2 | . . 2 . . . Weapon . | . . . . . . Parts Attached 30 | 3 10 11 1 . 5 Power 3 | . 1 2 . . . Engine 2 | . . 2 . . . Core 1 | . 1 . . . . Reactor . | . . . . . . Propulsion 5 | 2 2 1 . . . Treads 3 | 1 1 1 . . . Leg . | . . . . . . Wheel 2 | 1 1 . . . . Hover . | . . . . . . Flight . | . . . . . . Utility 10 | 1 1 5 1 . 2 Device 4 | 1 . 2 1 . . Storage 1 | . 1 . . . . Processor 1 | . . . . . 1 Hackware . | . . . . . . Protection 4 | . . 3 . . 1 Artifact . | . . . . . . Weapon 12 | . 6 3 . . 3 Energy Gun 3 | . 2 . . . 1 Energy Cannon 3 | . . 2 . . 1 Ballistic Gun 2 | . 2 . . . . Ballistic Cannon 1 | . 1 . . . . Launcher 3 | . 1 1 . . 1 Special Weapon . | . . . . . . Impact Weapon . | . . . . . . Slashing Weapon . | . . . . . . Piercing Weapon . | . . . . . . Special Melee Weapon . | . . . . . . Unidentified Prototypes 2 | . . 2 . . . Parts Lost 13 | . 8 . . . 5 Power 1 | . 1 . . . . Propulsion 4 | . 3 . . . 1 Utility 2 | . . . . . 2 Weapon 6 | . 4 . . . 2 Highest Loss Streak 4 | . 4 . . . 3 To Critical Strikes . | . . . . . . Average Backups 10 | 4 6 9 12 14 13 Power 1 | 1 1 1 1 1 1 Propulsion . | 2 1 . . . . Utility 5 | . 2 5 8 8 8 Weapon 2 | 1 1 2 3 4 3 Tool/Special . | . . . . . . Unused Backups 21 | 8 3 . . 1 9 Power 3 | 1 1 . . . 1 Propulsion 4 | 4 . . . . . Utility 7 | 1 . . . . 6 Weapon 5 | 2 1 . . 1 1 Tool/Special 2 | . 1 . . . 1 Average Slot Usage (%) 94 | . 95 80 100 100 92 Engine 9 | . 11 1 11 11 11 Core 2 | . 2 9 . . . Treads 10 | . 11 8 11 11 11 Wheel 11 | . 13 11 11 11 6 Device 16 | . 14 7 21 22 16 Storage 11 | . 14 11 11 11 11 Protection 7 | . . 9 11 11 10 Energy Gun 3 | . 12 . . . . Energy Cannon 12 | . . 7 22 22 20 Ballistic Gun 4 | . 11 6 . . . Ballistic Cannon 1 | . 1 6 . . . Peak Build Rating 24 | 7 8 24 24 23 23 Average Rating 16 | 6 7 14 22 22 21 On Entrance 15 | 6 7 8 24 22 23 Avg Prop Armor Cover (%) 7 | 3 5 8 7 8 8 Naked Turns . | . . . . . . Heaviest Build 45 | 13 31 45 45 43 43 Greatest Support 23 | 20 20 23 10 10 23 Greatest Overweight (x) 4 | . 3 4 4 4 4 Average Overweight (x) 2 | . . 3 4 4 3 Largest Inventory Capacity 15 | 8 15 15 15 15 15 Average Capacity 13 | 8 10 15 15 15 15 Most Carried 15 | 6 8 14 13 15 15 Average Carried 10 | 4 6 9 12 14 13 Final Capacity 15 | 8 15 15 15 15 15 Final Carried 15 | 5 5 12 12 15 14 Class Distribution -------------------- 100% | Mutant Dominant Class ---------------- Mutant | -10/Materials Mutant | -9/Materials Mutant | -9/Mines Mutant | -7/Zion Mutant | -6/Proximity Caves Resources | -11 -10 -9 -9 -7 -6 ----------- Run | Yrd Mat Mat Min Zio Pro Matter Collected 1420 | 272 287 420 78 77 286 Remotely . | . . . . . . Salvage Created 1216 | 121 419 419 12 . 245 Parts 96 | 12 34 40 3 . 7 Haulers Intercepted 1 | . . 1 . . . Recyclers Shooed 3 | . 2 1 . . . Parts Field Recycled . | . . . . . . Retrieved Matter . | . . . . . . Parts Self-Destructed 8 | . . . . 1 7 Prevented . | . . . . . . Parts Restored . | . . . . . . Kills | -11 -10 -9 -9 -7 -6 ------- Run | Yrd Mat Mat Min Zio Pro Combat Hostiles Destroyed 39 | . 13 18 . . 8 Guns 8 | . 3 5 . . . Cannons 13 | . . 9 . . 4 AOE 18 | . 10 4 . . 4 Classes Destroyed 9 | 2 4 2 . . 1 Worker 6 | . 5 1 . . . Tunneler 4 | 3 . . 1 . . Hauler 1 | . . 1 . . . Recycler 3 | 1 1 1 . . . Watcher 2 | . 1 1 . . . Swarmer 23 | . 6 13 . . 4 Grunt 14 | . 7 4 . . 3 Duelist 1 | . . . . . 1 Sentry 1 | . . 1 . . . Best Kill Streak 7 | 2 6 7 1 . 3 Combat Bots Only 7 | . 5 7 . . 3 Max Kills in Single Turn 5 | 1 4 5 1 . 1 Gunslinging . | . . . . . . Exploded 4 | . 3 4 . . 1 Melee . | . . . . . . Uniques/NPCs Destroyed . | . . . . . . Combat | -11 -10 -9 -9 -7 -6 -------- Run | Yrd Mat Mat Min Zio Pro Hostile Shots Fired 252 | . 102 64 . . 86 Missed 71 | . 31 20 . . 20 Hits 181 | . 71 44 . . 66 Melee 6 | . . . . . 6 Projectile 175 | . 71 44 . . 60 Critical Strikes 6 | . 1 . . . 5 Damage Taken 2634 | . 955 406 . . 1273 Core 642 | . 237 121 . . 284 Absorbed by Shields . | . . . . . . Regen/Repaired (Parts) 109 | . . 109 . . . Core Remaining (%) 52 | 100 5 . . . . Volleys Fired 135 | 14 61 38 1 . 21 Largest 2 | 2 2 2 2 . 2 Hottest 136 | 70 90 136 136 . 136 Shots Fired 237 | 28 102 75 2 . 30 Gun 144 | 28 85 31 . . . Cannon 71 | . 5 43 2 . 21 Launcher 22 | . 12 1 . . 9 Special . | . . . . . . Kinetic 118 | 14 42 62 . . . Thermal 97 | 14 48 12 2 . 21 Explosive 22 | . 12 1 . . 9 Electromagnetic . | . . . . . . Robot Hit Streak 8 | 4 7 8 6 . 3 Robot Miss Streak 5 | 3 4 5 . . 3 Penetration Max . | . . . . . . Secondary Targets . | . . . . . . Shots Hit Robots 121 | 11 53 43 1 . 13 Core Hits 85 | 5 32 24 1 . 23 Critical Kills . | . . . . . . Critical Parts Destroyed . | . . . . . . Critical Strikes 5 | 3 2 . . . . Burn 5 | 3 2 . . . . Melee Attacks . | . . . . . . Impact . | . . . . . . Slashing . | . . . . . . Piercing . | . . . . . . Sneak Attacks . | . . . . . . Combat Hostiles . | . . . . . . Follow-up Attacks . | . . . . . . Damage Inflicted 3313 | 149 1272 1042 23 . 827 Guns 994 | 149 568 277 . . . Cannons 694 | . 32 436 23 . 203 Explosions 1625 | . 672 329 . . 624 Melee . | . . . . . . Ramming . | . . . . . . Kinetic 903 | 35 320 548 . . . Thermal 809 | 114 304 165 23 . 203 Explosive 1601 | . 648 329 . . 624 Electromagnetic . | . . . . . . Impact . | . . . . . . Slashing . | . . . . . . Piercing . | . . . . . . Highest Corruption 1 | . . 1 1 1 . Average Corruption 1 | . . 1 1 1 . Corruption Purged . | . . . . . . Corruption Blocked . | . . . . . . Effects 7 | . . . 6 1 . Message Errors 2 | . . . 2 . . Matter Fused 1 | . . . 1 . . Heat Flow Errors 1 | . . . 1 . . Data Loss (minor) 2 | . . . 2 . . Alerts 1 | . . . . 1 . Overload Shots . | . . . . . . Overflow Damage 105 | . 74 30 . . 1 Projectiles 21 | . . 21 . . . Explosions 84 | . 74 9 . . 1 Melee . | . . . . . . Knockbacks 2 | . 1 1 . . . Impact . | . . . . . . Kinetic 2 | . 1 1 . . . Secondary . | . . . . . . Self-Inflicted Damage 233 | . 167 17 . . 49 Shots 8 | . 6 1 . . 1 Rammed . | . . . . . . Targets Rammed . | . . . . . . Kicked . | . . . . . . Crushed . | . . . . . . Highest Temperature 309 | 72 192 174 180 . 309 Average Temperature 59 | 26 44 54 73 . 112 Received Heat Transfer 774 | . 390 69 . . 315 Effects 1 | . . . . . 1 Energy Bleed 1 | . . . . . 1 Siege Activations . | . . . . . . Martial Activations . | . . . . . . Shielding Activations . | . . . . . . Robots Disrupted . | . . . . . . Combat Hostiles . | . . . . . . Robots Corrupted . | . . . . . . Combat Hostiles . | . . . . . . Parts Fried . | . . . . . . Impact Corruptions . | . . . . . . Robots Melted . | . . . . . . Combat Hostiles . | . . . . . . Parts Melted 4 | 3 1 . . . . Heat Transferred 2234 | 555 1013 259 37 . 370 Parts Sabotaged . | . . . . . . Parts Stolen . | . . . . . . Parts Stripped . | . . . . . . Power Chain Reactions . | . . . . . . Alert | -11 -10 -9 -9 -7 -6 ------- Run | Yrd Mat Mat Min Zio Pro Maximum Alert Level 1 | . 1 1 . . . Low Security (%) 72 | 100 68 47 100 . . Level 1 27 | . 31 52 . . . Level 2 . | . . . . . . Level 3 . | . . . . . . Level 4 . | . . . . . . Level 5 . | . . . . . . High Security . | . . . . . . Max Security . | . . . . . . Peak Influence 394 | 10 291 394 138 . . Initial 138 | . . 99 138 . . Average 96 | 1 88 199 30 . . Influence Increases 1243 | 20 466 557 5 . 195 Destroy 0b10 Robot/C 780 | . 260 360 . . 160 Destroy 0b10 Robot/NC 80 | 20 35 20 5 . . Destroy Leader 146 | . 52 74 . . 20 Successful Hack 16 | . 5 11 . . . Select Force Hacks 60 | . 30 30 . . . Disable Machine 30 | . 30 . . . . Destroy Structure 71 | . 54 17 . . . Lose Combat Pursuer 60 | . . 45 . . 15 Influence Decreases 1243 | 20 230 439 359 . 195 Entered New Map 353 | . . 137 216 . . Time Decay 783 | 20 150 302 143 . 168 Lost Part 107 | . 80 . . . 27 Squads Dispatched 5 | . 2 3 . . . Investigation 2 | . 1 1 . . . Extermination . | . . . . . . Reinforcement 3 | . 1 2 . . . Assault . | . . . . . . Garrison . | . . . . . . Intercept . | . . . . . . Searches Triggered . | . . . . . . Construction Impeded 1 | . . 1 . . . Haulers Reinforced . | . . . . . . Active Scanning Responses . | . . . . . . Cargo Convoy Interrupts . | . . . . . . Stealth | -11 -10 -9 -9 -7 -6 --------- Run | Yrd Mat Mat Min Zio Pro Distress Signals 2 | . . 2 . . . Communications Jammed . | . . . . . . Distress Signals . | . . . . . . Times Spotted 57 | . 18 22 . . 17 Peak Tracking Total 7 | . 7 7 . . 7 Tactical Retreats 3 | . . 2 . . 1 Traps | -11 -10 -9 -9 -7 -6 ------- Run | Yrd Mat Mat Min Zio Pro Traps Triggered 2 | . 1 1 . . . Indirectly . | . . . . . . Trap Hack Attempts . | . . . . . . Triggered . | . . . . . . Disarmed . | . . . . . . Reprogrammed . | . . . . . . Reused . | . . . . . . Traps Extracted . | . . . . . . Installed . | . . . . . . Triggered . | . . . . . . Machines | -11 -10 -9 -9 -7 -6 ---------- Run | Yrd Mat Mat Min Zio Pro Machines Disabled 6 | . 2 . . . 4 Max in Single Turn 3 | . 1 . . . 3 Machines Repaired . | . . . . . . Machines Dismantled . | . . . . . . Machines Sabotaged . | . . . . . . Overloaded Fab Kills . | . . . . . . Hacking | -11 -10 -9 -9 -7 -6 --------- Run | Yrd Mat Mat Min Zio Pro Machines Accessed 5 | . 2 3 . . . Terminals 2 | . 1 1 . . . Fabricators . | . . . . . . Repair Stations 1 | . . 1 . . . Recycling Units 2 | . 1 1 . . . Scanalyzers . | . . . . . . Garrison Access . | . . . . . . Total Hacks 11 | . 3 8 . . . Successful 7 | . 2 5 . . . Failed 4 | . 1 3 . . . Catastrophic 2 | . 1 1 . . . Database Lockouts . | . . . . . . Manual 7 | . 2 5 . . . Terminals 5 | . 2 3 . . . Fabricators . | . . . . . . Repair Stations 2 | . . 2 . . . Recycling Units 4 | . 1 3 . . . Scanalyzers . | . . . . . . Garrison Access . | . . . . . . Terminal Hacks 3 | . 1 2 . . . Terminal Index 1 | . . 1 . . . Hauler Manifests 1 | . 1 . . . . Zone Layout 1 | . . 1 . . . Fabricator Hacks . | . . . . . . Repair Station Hacks 2 | . . 2 . . . Scan Component 1 | . . 1 . . . Repair 1 | . . 1 . . . Recycling Unit Hacks . | . . . . . . Scanalyzer . | . . . . . . Garrison Access Hacks . | . . . . . . Unauthorized Hacks 2 | . 1 1 . . . Terminals . | . . . . . . Fabricators . | . . . . . . Repair Stations . | . . . . . . Recycling Units 2 | . 1 1 . . . Tunnel 2 | . 1 1 . . . Scanalyzers . | . . . . . . Garrison Access . | . . . . . . Data Cores Recovered . | . . . . . . Used . | . . . . . . Hacking Detections 3 | . 1 2 . . . Full Trace Events . | . . . . . . Feedback Events . | . . . . . . Feedback Blocked . | . . . . . . Robot Schematics Acquired . | . . . . . . Robots Built . | . . . . . . Authchips . | . . . . . . Time . | . . . . . . Total Robot Build Rating . | . . . . . . Part Schematics Acquired . | . . . . . . Parts Built . | . . . . . . Authchips . | . . . . . . Time . | . . . . . . Total Part Build Rating . | . . . . . . Part Studies Acquired . | . . . . . . Parts Repaired 1 | . . 1 . . . Time 32 | . . 32 . . . Parts Recycled . | . . . . . . Recycled Matter . | . . . . . . Retrieved Matter . | . . . . . . Retrieved Components . | . . . . . . Parts Scanalyzed . | . . . . . . Part Schematics Acquired . | . . . . . . Parts Damaged . | . . . . . . Bothacking | -11 -10 -9 -9 -7 -6 ------------ Run | Yrd Mat Mat Min Zio Pro Used RIF Installer . | . . . . . . Robots Hacked . | . . . . . . Non-combat . | . . . . . . Combat . | . . . . . . Robot Hacks Applied . | . . . . . . Relay Couplers Released . | . . . . . . Fabnet Peak Effective % . | . . . . . . Robots Rewired . | . . . . . . Allies Hacked . | . . . . . . Hacks Repelled . | . . . . . . Allies | -11 -10 -9 -9 -7 -6 -------- Run | Yrd Mat Mat Min Zio Pro Total Allies 5 | . . . . 5 . Largest Group 5 | . . . . 5 4 Highest-Rated Group 129 | . . . . 129 98 Highest-Rated Ally 31 | . . . . 31 31 Total Orders . | . . . . . . Ally Attacks 14 | . . . . 2 12 Total Damage 351 | . . . . 45 306 Kills . | . . . . . . Allies Corrupted . | . . . . . . Allies Melted 1 | . . . . . 1 Intel | -11 -10 -9 -9 -7 -6 ------- Run | Yrd Mat Mat Min Zio Pro Active Infowar (turns) 3817 | 33 1297 209 679 950 649 Structural 14 | . . 14 . . . Seismic 3816 | 33 1297 208 679 950 649 Robot Analysis Total . | . . . . . . Derelict Logs Recovered 1 | . . . . 1 . Drone Launches . | . . . . . . Drone Recoveries . | . . . . . . Exploration | -11 -10 -9 -9 -7 -6 ------------- Run | Yrd Mat Mat Min Zio Pro Turns Passed 4432 | 143 1297 669 695 950 678 Spaces Moved 2658 | 60 728 374 469 673 354 Core . | . . . . . . Treads 607 | 60 429 8 . . 110 Legs . | . . . . . . Wheels 2051 | . 299 366 469 673 244 Hover . | . . . . . . Flight . | . . . . . . Fastest Speed 100 | 160 100 110 140 140 125 Average Speed 144 | 160 145 128 140 140 170 Slowest Speed 240 | 160 240 240 140 140 240 Overloaded Moves . | . . . . . . Propulsion Burnouts . | . . . . . . Robots Hopped . | . . . . . . Potential Cave-ins . | . . . . . . Cave-ins Triggered . | . . . . . . Exploration Rate (%) 51 | 4 76 29 68 80 52 Regions Visited 5 Branch Regions 3 Pre-discovered Areas 5 | . 1 1 1 2 . Known Exits Taken . | . . . . . . Unknown Exits Taken 5 | 1 1 1 1 1 . Scrap Searched 6 | . . . 1 3 2 Spaces Dug 7 | . . . . . 7 Terrain Destroyed 147 | . 73 11 . . 63 Melee . | . . . . . . Projectile 1 | . . 1 . . . AOE 146 | . 73 10 . . 63 Terrain Rammed . | . . . . . . Walls Destroyed . | . . . . . . Machines Disabled . | . . . . . . Actions | -11 -10 -9 -9 -7 -6 --------- Run | Yrd Mat Mat Min Zio Pro Total 3004 | 79 859 485 505 682 394 Wait 138 | . 52 45 33 3 5 Move 2653 | 59 727 373 468 672 354 Hop . | . . . . . . Pick Up 21 | 1 4 9 1 5 1 Fast Attach 11 | 1 4 5 . . 1 Attach 8 | . 3 2 . . 3 Detach 4 | . . 3 . . 1 Swap 24 | 2 6 7 1 . 8 Drop 10 | 2 2 3 1 2 . Fire 135 | 14 61 38 1 . 21 Melee . | . . . . . . Ram . | . . . . . . Kick . | . . . . . . Crush . | . . . . . . Escape Stasis . | . . . . . . Rewire . | . . . . . . Trap . | . . . . . . Miscellaneous . | . . . . . . Route ------- -11/Scrapyard -10/Materials (discovered 5 exits: *Mat x3 / [*Min] / [*Sub]) -9/Materials -9/Mines (discovered 2 exits: [*Exi] / [*Zio]) -7/Zion -6/Proximity Caves History --------- Turn | Location | Event 8 | -11/Scrapyard | Discovered new exit (range 3) 144 | -11/Scrapyard | Entered Materials 316 | -10/Materials | Build established: Mutant 420 | -10/Materials | Discovered new exit (range 7) 548 | -10/Materials | Discovered new exit (range 10) 817 | -10/Materials | Discovered new exit (range 10) 965 | -10/Materials | Discovered new exit (range 3) 1039 | -10/Materials | Core integrity fell below 50% 1087 | -10/Materials | Core integrity fell below 20% 1091 | -10/Materials | Lost 4 parts (2n2w) 1252 | -10/Materials | Lost 4 parts (1p1n2w) 1430 | -10/Materials | Discovered new exit (range 9) 1441 | -10/Materials | Entered another Materials area 1441 | -9/Materials | Evolved 2 slots: Utility x2 1792 | -9/Materials | Destroyed 7 combat bots 2024 | -9/Materials | Discovered new exit (range 15) 2087 | -9/Materials | Repaired Imp. Treads 2110 | -9/Materials | Entered Mines 2210 | -9/Mines | Received a Rocket Launcher from a helpful Derelict 2378 | -9/Mines | Deemed a non-threat by the Exiles lab entrance 2379 | -9/Mines | Discovered new exit (range 5) 2441 | -9/Mines | Found a Scrap Suit stashed away for nefarious purposes 2695 | -9/Mines | A Derelict revealed a hidden shortcut to a safe place 2747 | -9/Mines | Learned location of Storage (-7) 2805 | -9/Mines | Entered Zion 2817 | -7/Zion | Learned location of 1 exit from Factory 2866 | -7/Zion | System corruption cleaned by Quarantine Array 2901 | -7/Zion | Learned location of Quarantine (-2) 3163 | -7/Zion | Met Imprinter 3496 | -7/Zion | Learned location of Testing (-3) 3566 | -7/Zion | Gained Derelict followers 3743 | -7/Zion | Discovered new exit (range 9) 3755 | -7/Zion | Entered Proximity Caves 3755 | -6/Proximity Caves | Accompanied by 4 allies 3853 | -6/Proximity Caves | Spotted B-75 Beast 3904 | -6/Proximity Caves | Lost 3 allies 4166 | -6/Proximity Caves | Lost 3 parts (1n1u1w) 4399 | -6/Proximity Caves | Attracted the attention of an 0b10 base 4407 | -6/Proximity Caves | Core integrity fell below 50% 4413 | -6/Proximity Caves | Core integrity fell below 20% 4433 | -6/Proximity Caves | Destroyed by G-50 Soldier with Heavy Laser Last Messages --------------- 04223_ Acquired 45 matter. 04341_ Acquired 3 matter. 04358_ Acquired 1 matter. 04384_ Searching scrap... 04384_ Found Flexi-carbon Leg. 04384_ Found Hvy. Mace. 04384_ Found Thermal Shield. 04384_ Found 60 Matter. 04385_ Acquired 60 matter. 04389_ Acquired Thermal Shield. 04391_ S-27 Virus springs to life. 04399_ G-50 Soldier springs to life. 04401_ S-27 Virus destroyed. 04406_ Machine disabled. 04406_ Outpost Terminal disabled. 04408_ Machine disabled. 04410_ Rocket Launcher destroyed. 04410_ Critical hit (Burn: +37). 04419_ The unstable cave ceiling collapses. 04431_ Imp. Light Armor Plating destroyed. Map ----- +----------------------------------------------------+ | | | | | | | | | | | ?????????????????????????????????????????????????? | | ?????????????????????????????????????????????????? | | ?????????????????????????????????????????????????? | | ?????????????????????????????????????????????????? | | ?????????????????????????????????????????????????? | | ?????????????????????????????????????????????????? | | ?????????????????????????????????????????????????? | | ?????????????????????????????????????????????????? | | ?????????????????????????????????????????????????? | | ?????????????????????????????????????????????????? | | ?????????????????????????????????????????????????? | | ?????????????????????????????????????????????????? | | ???????????????????????#############?##??????????? | | ???????????????????????# ?? ??????????? | | ???????????????????????# ??? ??????????? | | ???????????????????????# # +#??# #?????????? | | ???????????????????????# " "??# ?????????? | | ???????????????????????# " "??# ?????????? | | ???????????????????????# """# #????????? | | ???????????????????????# # #???????? % | | ???????????????????????# @# # ###????? | | ???????????????????????# #"" # ????? | | ???????????????????????# #" # ????? | | ???????????????????????# #? # #???## % | | ???????????????????????# s#?" % """?# #??# #? | | ???????????????????????#g ### ##### #?# #? | | ???????????????????????# g / ## % #? | | ???????????????????????# = # % %#? | | ???????????????????????#### # ###### % ##? | | ??????????????????????????## #####?## % ##% #?? | | ???????????????????????????###?????# ##???#?? | | ???????????????????????????????????# ##??????? | | ???????????????????????????????????# ###???????? | | ???????????????????????????????????# #####?????? | | ???????????????????????????????????## ##????? | | ????????????????????????????????????# #????? | | ????????????????????????????????????# ##????? | | ???????????????????????????????????## ##?????? | | ???????????????????????????????????# ###??????? | | ???????????????????????????????????# #????????? | | ???????????????????????????????????# #????????? | | ???????????????????????????????????# #????????? | | ???????????????????????????????????# ####?????? | | ???????????????????????????????????# #?????? | | ???????????????????????????????????# #??###? | +----------------------------------------------------+ Best States ------------- Heat Dissipation 28 Energy Generation 14 Energy Capacity 280 Matter Stores 300 Matter Capacity 300 Sight Range 16 Terrain Scan Density 10 Armor Coverage 300 Evasion (%) 40 Targeting Accuracy 6 Recoil Reduction 1 Particle Charging 15 Item Schematics ----------------- None Robot Schematics ------------------ None Fabricated ------------ Nothing Repaired ---------- Imp. Treads | 29% | -9/Materials Studied --------- None Alien Tech Used ----------------- None Achievements -------------- Deductive Reasoning Challenges ------------ None Game ------ Seed ArcWeaponNeutralizer Manual? 0 Play Time 00:43:08 Cumulative 78.0 hours Start 2025.10.24 @ 23:29:21 End 2025.10.25 @ 00:14:04 Sessions 1 Manual Loads 0 Difficulty Rogue Special Mode None Game No. 93 Rogue 63 Adventurer 30 Explorer 0 Win Type - Total 0 Types 0/0/0/0/0/0/0/0/0/0 Lore% 41 Gallery% 39 Achievement% 23 Wizard Run 0 Options --------- Layout 1 ASCII 0 Keyboard 1 Movement Arrows Keybinds 0 Fullscreen 1 Font 24/Terminus Map View 25x17 Zoom Use 75% Tactical HUD 1 Map Filters NONE Filters NONE Steam 1 RUN: 6c9ea92c-9167-40a8-8a17-1d27a22fb85d